{"text_format":"3","workbook":"xlsx","n_sheets":4,"sheets":["Početak","Troškovi","Prihodi","Sažetak"],"not_rendered":{"charts":1,"defined_names":2},"read":"whole","date_system":"1900"}

{"sheet":"Početak","index":0,"n_rows":8,"n_cols":2,"rows_kept":8}
[null,"O OVOM PREDLOŠKU"]
[null,"Putem ove radne knjige Proračun za događaj pratite Troškovi i prihodi od nekog događaja."]
[null,"Unesite naziv događaja i unesite podatke u tablice na radnim listovima Troškovi i Prihodi."]
[null,"Automatski se izračunavaju ukupni troškovi i ukupni prihodi."]
[null,"Sažetak dobiti i gubitka i gubitka automatski se ažuriraju na radnom listu Sažetak."]
[null,"Napomena: "]
[null,"Dodatne su upute navedene u stupcu A na svakom radnom listu. Ovaj je tekst namjerno skriven. Da biste uklonili tekst, odaberite stupac A, a zatim odaberite IZBRIŠI. Da biste otkrili tekst, odaberite stupac A, a zatim promijenite boju fonta."]
[null,"Da biste saznali više o tablicama, pritisnite SHIFT, a zatim F10 unutar tablice pa odaberite mogućnost TABLICA, a potom ZAMJENSKI TEKST."]

{"sheet":"Troškovi","index":1,"n_rows":33,"n_cols":8,"rows_kept":33,"merged":[[0,5,0,7],[1,1,1,7],[2,6,2,7]]}
["U odgovarajuće tablice na ovom radnom listu unesite procijenjeno i stvarno izdatke za svaku kategoriju. Ukupni izdaci izračunavaju se automatski. U ćelijama u ovom stupcu nalaze se korisne upute za korištenje ovog radnog lista. Pomoću tipke sa strelicom prema dolje počnite s radom."]
["U ćeliju s desne strane unesite naziv događaja da biste prilagodili naslov ovoga i drugih radnih listova.","Proračun događaja za \nNaziv događaja"]
["Oznaka Troškovi nalazi se u ćeliji G3.",{"$nulls":5}," Troškovi"]
["U ćeliji G4 nalazi se oznaka Procijenjeno, a u ćeliji H4 Stvarno.",{"$nulls":5},"Procijenjeno","Stvarno"]
["U ćeliji s desne strane nalazi se oznaka Ukupni troškovi. Procijenjeno ukupni izdaci izračunavaju se automatski u ćeliji G5. Stvarno Ukupni troškovi i podatkovna traka s prikazom stvarnih Ukupni troškovi automatski se ažuriraju u ćeliji H5. Sljedeća se uputa nalazi u ćeliji A7.","Ukupni troškovi",{"$nulls":4},{"$f":"SUM(C12,C20,C26,C33,G12,G20,G25)","v":{"v":1145,"d":"1,145.00 kn"}},{"$f":"SUM(D12,D20,D26,D33,H12,H20,H25)","v":{"v":395,"d":"395.00 kn"}}]
[]
["Unesite Troškovi Lokacije u tablicu koja počinje ćelijom s desne strane, a Troškovi Zakuske u tablicu koja počinje ćelijom F7. Sljedeća je uputa u ćeliji A14.","Web-mjesto","Procijenjeno","Stvarno",null,"Domjenak","Procijenjeno","Stvarno"]
[null,"Naknade za prostorije i dvoranu",{"v":500,"d":"500.00 kn"},{"v":250,"d":"250.00 kn"},null,"Hrana"]
[null,"Osoblje na lokaciji",{"v":400,"d":"400.00 kn"},{"v":50,"d":"50.00 kn"},null,"Pića"]
[null,"Oprema",{"$nulls":3},"Stolnjaci"]
[null,"Stolovi i sjedala",{"$nulls":3},"Osoblje i honorari"]
[null,"Zbroj",{"$f":"SUBTOTAL(109,TroškoviLokacije[Procijenjeno])","v":{"v":900,"d":"900.00 kn"}},{"$f":"SUBTOTAL(109,TroškoviLokacije[Stvarno])","v":{"v":300,"d":"300.00 kn"}},null,"Zbroj",{"$f":"SUBTOTAL(109,TroškoviZakuske[Procijenjeno])","v":{"v":0,"d":"0.00 kn"}},{"$f":"SUBTOTAL(109,TroškoviZakuske[Stvarno])","v":{"v":0,"d":"0.00 kn"}}]
[]
["Unesite Troškovi Ukrasa u tablicu koja počinje ćelijom s desne strane, a Troškovi Programa u tablicu koja počinje ćelijom F14. Sljedeća je uputa u ćeliji A22.","Ukrasi","Procijenjeno","Stvarno",null,"Program","Procijenjeno","Stvarno"]
[null,"Cvijeće",{"v":200,"d":"200.00 kn"},{"v":50,"d":"50.00 kn"},null,"Izvođači"]
[null,"Svjećice",{"$nulls":3},"Govornici"]
[null,"Rasvjeta",{"$nulls":3},"Putovanja"]
[null,"Baloni",{"$nulls":3},"Hotel"]
[null,"Papirni materijal",{"$nulls":3},"Ostalo"]
[null,"Zbroj",{"$f":"SUBTOTAL(109,TroškoviUkrasa[Procijenjeno])","v":{"v":200,"d":"200.00 kn"}},{"$f":"SUBTOTAL(109,TroškoviUkrasa[Stvarno])","v":{"v":50,"d":"50.00 kn"}},null,"Zbroj",{"$f":"SUBTOTAL(109,TroškoviPrograma[Procijenjeno])","v":{"v":0,"d":"0.00 kn"}},{"$f":"SUBTOTAL(109,TroškoviPrograma[Stvarno])","v":{"v":0,"d":"0.00 kn"}}]
[]
["Unesite Troškovi Objavljivanja u tablicu koja počinje ćelijom s desne strane, a Troškovi Nagrada u tablicu koja počinje ćelijom F22. Sljedeća se uputa nalazi u ćeliji A28.","Promocija","Procijenjeno","Stvarno",null,"Nagrade","Procijenjeno","Stvarno"]
[null,"Grafički poslovi",{"v":45,"d":"45.00 kn"},{"v":45,"d":"45.00 kn"},null,"Vrpce/ploče/pehari"]
[null,"Fotokopiranje/ispis",{"$nulls":3},"Darovi"]
[null,"Poštarina",{"$nulls":3},"Zbroj",{"$f":"SUBTOTAL(109,TroškoviNagrada[Procijenjeno])","v":{"v":0,"d":"0.00 kn"}},{"$f":"SUBTOTAL(109,TroškoviNagrada[Stvarno])","v":{"v":0,"d":"0.00 kn"}}]
[null,"Zbroj",{"$f":"SUBTOTAL(109,TroškoviObjavljivanja[Procijenjeno])","v":{"v":45,"d":"45.00 kn"}},{"$f":"SUBTOTAL(109,TroškoviObjavljivanja[Stvarno])","v":{"v":45,"d":"45.00 kn"}}]
[]
["Unesite Razni Troškovi u tablicu koja počinje u ćeliji s desne strane.","Razno","Procijenjeno","Stvarno"]
[null,"Telefonski broj"]
[null,"Prijevoz"]
[null,"Zalihe tiskanica"]
[null,"Usluge faksiranja"]
[null,"Zbroj",{"$f":"SUBTOTAL(109,RazniTroškovi[Procijenjeno])","v":{"v":0,"d":"0.00 kn"}},{"$f":"SUBTOTAL(109,RazniTroškovi[Stvarno])","v":{"v":0,"d":"0.00 kn"}}]

{"sheet":"Prihodi","index":2,"n_rows":30,"n_cols":7,"rows_kept":30,"merged":[[1,1,1,6],[2,5,2,6]]}
["U odgovarajuće tablice na ovom radnom listu unesite procijenjeno i stvarno prihod za svaku kategoriju. Ukupni prihod izračunava se automatski. U ćelijama u ovom stupcu nalaze se korisne upute za korištenje ovog radnog lista. Pomoću tipke sa strelicom prema dolje počnite s radom."]
["Naziv događaja automatski se ažurira u ćeliji s desne strane.",{"$f":"Troškovi!B2","v":"Proračun događaja za \nNaziv događaja"}]
["Oznaka Prihodi u ćeliji F3.",{"$nulls":4}," Prihodi"]
["U ćeliji F4 nalazi se oznaka Procijenjeno, a u ćeliji G4 Stvarno.",{"$nulls":4},"Procijenjeno","Stvarno"]
["Oznaka Ukupni prihodi nalazi se u ćeliji s desne strane. Procijenjeni ukupni zbroj izračunavaju se automatski u ćeliji F5. Stvarni ukupni zbroj i podatkovna traka s prikazom stvarni ukupni zbroj automatski se ažuriraju u ćeliji G5.","Ukupni prihod",{"$nulls":3},{"$f":"SUM(Ulaznice[[#Totals],[Procijenjeni ukupni zbroj]],OglasiUProgramu[[#Totals],[Procijenjeni ukupni zbroj]],IzlagačiIProdavači[[#Totals],[Procijenjeni ukupni zbroj]],ProdajaArtikla[[#Totals],[Procijenjeni ukupni zbroj]])","v":{"v":1936,"d":"1,936.00 kn"}},{"$f":"SUM(Ulaznice[[#Totals],[Stvarni ukupni zbroj]],OglasiUProgramu[[#Totals],[Stvarni ukupni zbroj]],IzlagačiIProdavači[[#Totals],[Stvarni ukupni zbroj]],ProdajaArtikla[[#Totals],[Stvarni ukupni zbroj]])","v":{"v":1831,"d":"1,831.00 kn"}}]
["Oznaka Ulaznice nalazi se u ćeliji s desne strane.","Ulaznice"]
["U tablicu koja počinje u ćeliji s desne stane unesite procijenjeno i stvarno broj ulaznica s cijenama. Procijenjeno i stvarno prihod od ulaznice izračunava se automatski. Sljedeća je uputa u ćeliji A12.","Procijenjeno","Stvarno","Vrsta","Cijena","Procijenjeni ukupni zbroj","Stvarni ukupni zbroj"]
[null,300,278,"Odrasli @",{"v":5,"d":"5.00 kn"},{"$f":"B8*E8","v":{"v":1500,"d":"1,500.00 kn"}},{"$f":"C8*E8","v":{"v":1390,"d":"1,390.00 kn"}}]
[null,197,195,"Djeca @",{"v":2,"d":"2.00 kn"},{"$f":"B9*E9","v":{"v":394,"d":"394.00 kn"}},{"$f":"C9*E9","v":{"v":390,"d":"390.00 kn"}}]
[null,42,51,"Ostalo @",{"v":1,"d":"1.00 kn"},{"v":42,"d":"42.00 kn"},{"v":51,"d":"51.00 kn"}]
[null," ",{"$nulls":3},{"$f":"SUBTOTAL(109,Ulaznice[Procijenjeni ukupni zbroj])","v":{"v":1936,"d":"1,936.00 kn"}},{"$f":"SUBTOTAL(109,Ulaznice[Stvarni ukupni zbroj])","v":{"v":1831,"d":"1,831.00 kn"}}]
["Oznaka Oglasi u programu nalazi se u ćeliji s desne strane.","Oglasi u programu"]
["U tablicu koja počinje u ćeliji s desne stane unesite procijenjeno i stvarno broj oglasi u programu i cijenu oglasa. Procijenjeno i stvarno prihod od oglasa izračunava se automatski. Sljedeće se upute nalaze u ćeliji A18.","Procijenjeno","Stvarno","Vrsta","Cijena","Procijenjeni ukupni zbroj","Stvarni ukupni zbroj"]
[{"$nulls":3},"Naslovnice @",null,{"$f":"B14*E14","v":{"v":0,"d":"0.00 kn"}},{"$f":"C14*E14","v":{"v":0,"d":"0.00 kn"}}]
[{"$nulls":3},"Polovine stranica @",null,{"$f":"B15*E15","v":{"v":0,"d":"0.00 kn"}},{"$f":"C15*E15","v":{"v":0,"d":"0.00 kn"}}]
[{"$nulls":3},"Četvrtine stranica @",null,{"v":0,"d":"0.00 kn"},{"v":0,"d":"0.00 kn"}]
[null," ",{"$nulls":3},{"$f":"SUBTOTAL(109,OglasiUProgramu[Procijenjeni ukupni zbroj])","v":{"v":0,"d":"0.00 kn"}},{"$f":"SUBTOTAL(109,OglasiUProgramu[Stvarni ukupni zbroj])","v":{"v":0,"d":"0.00 kn"}}]
["U ćeliji s desne strane nalazi se oznaka Izlagači ili Dobavljači.","Izlagači/dobavljači"]
["U tablicu koja počinje u ćeliji s desne stane unesite procijenjeno i stvarno broj izlagači i dobavljači te cijene štandova. Procijenjeno i stvarno prihod izračunava se automatski. Sljedeća se uputa nalazi u ćeliji A24.","Procijenjeno","Stvarno","Vrsta","Cijena","Procijenjeni ukupni zbroj","Stvarni ukupni zbroj"]
[{"$nulls":3},"Veliki štandovi @",null,{"$f":"B20*E20","v":{"v":0,"d":"0.00 kn"}},{"$f":"C20*E20","v":{"v":0,"d":"0.00 kn"}}]
[{"$nulls":3},"Srednji štandovi @",null,{"$f":"B21*E21","v":{"v":0,"d":"0.00 kn"}},{"$f":"C21*E21","v":{"v":0,"d":"0.00 kn"}}]
[{"$nulls":3},"Mali štandovi @",null,{"v":0,"d":"0.00 kn"},{"v":0,"d":"0.00 kn"}]
[null," ",{"$nulls":3},{"$f":"SUBTOTAL(109,IzlagačiIProdavači[Procijenjeni ukupni zbroj])","v":{"v":0,"d":"0.00 kn"}},{"$f":"SUBTOTAL(109,IzlagačiIProdavači[Stvarni ukupni zbroj])","v":{"v":0,"d":"0.00 kn"}}]
["Oznaka Prodaja artikala nalazi se u ćeliji s desne strane.","Prodaja artikala"]
["U tablicu koja počinje u ćeliji s desne stane unesite procijenjeno i stvarno broj prodanih artikala te cijene artikala. Procijenjeno i stvarno prihod izračunava se automatski.","Procijenjeno","Stvarno","Vrsta","Cijena","Procijenjeni ukupni zbroj","Stvarni ukupni zbroj"]
[{"$nulls":3},"Artikli @",null,{"$f":"B26*E26","v":{"v":0,"d":"0.00 kn"}},{"$f":"C26*E26","v":{"v":0,"d":"0.00 kn"}}]
[{"$nulls":3},"Artikli @",null,{"$f":"B27*E27","v":{"v":0,"d":"0.00 kn"}},{"$f":"C27*E27","v":{"v":0,"d":"0.00 kn"}}]
[{"$nulls":3},"Artikli @",null,{"v":0,"d":"0.00 kn"},{"v":0,"d":"0.00 kn"}]
[{"$nulls":3},"Artikli @",null,{"v":0,"d":"0.00 kn"},{"v":0,"d":"0.00 kn"}]
[null," ",{"$nulls":3},{"$f":"SUBTOTAL(109,ProdajaArtikla[Procijenjeni ukupni zbroj])","v":{"v":0,"d":"0.00 kn"}},{"$f":"SUBTOTAL(109,ProdajaArtikla[Stvarni ukupni zbroj])","v":{"v":0,"d":"0.00 kn"}}]

{"sheet":"Sažetak","index":3,"n_rows":9,"n_cols":4,"rows_kept":9,"merged":[[1,1,1,3],[2,2,2,3],[8,1,8,4],[9,1,9,3]]}
["Na ovom se radnom listu automatski ažuriraju Sažetak dobiti i gubitka i gubitka u kojim se prikazuju ukupni prihodi i izdaci. U ćelijama u ovom stupcu nalaze se korisne upute za korištenje ovog radnog lista. Pomoću tipke sa strelicom prema dolje počnite s radom."]
["Naziv događaja automatski se ažurira u ćeliji s desne strane.",{"$f":"Troškovi!B2","v":"Proračun događaja za \nNaziv događaja"}]
["Oznaka Sažetak dobiti i gubitka nalazi se u ćeliji C3. Sljedeća je uputa u ćeliji A5.",null,"Sažetak dobiti i gubitka"]
[]
["Tablica Zbroj zbora koja počinje u ćeliji s desne strane ažurira se automatski. Sljedeća je uputa u ćeliji A9.","Zbroj","Procijenjeno","Stvarno"]
[null,"Ukupni prihod",{"$f":"Prihodi!F5","v":{"v":1936,"d":"1,936.00 kn"}},{"$f":"Prihodi!G5","v":{"v":1831,"d":"1,831.00 kn"}}]
[null,"Ukupni izdaci",{"$f":"Troškovi!G5","v":{"v":1145,"d":"1,145.00 kn"}},{"$f":"Troškovi!H5","v":{"v":395,"d":"395.00 kn"}}]
[null,"Ukupna dobit (ili gubitak)",{"$f":"C6-C7","v":{"v":791,"d":"791.00 kn"}},{"$f":"D6-D7","v":{"v":1436,"d":"1,436.00 kn"}}]
["Grupirani stupčasti grafikon na kojem se prikazuje usporedba procijenjeno i stvarno ukupni prihod i ukupni izdaci nalazi se u ćeliji s desne strane.","U ovoj se ćeliji nalazi grupirani stupčasti grafikon na kojem se prikazuje usporedba procijenjeno i stvarno ukupni prihod i ukupni izdaci."]